fUSD/lending_fUSD_20260131
["ID","MTS","AMOUNT","RATE_DAILY","PERIOD"]
[404105720,1769854232262,-151.0,0.00014674,2]
[404105722,1769854232271,-151.0,0.00014674,2]
[404105725,1769854232280,-151.0,0.00014674,2]
[404105727,1769854232290,-500.0,0.00014674,2]
[404105729,1769854232299,-500.0,0.00014675,2]
[404105731,1769854232309,-1000.0,0.00014682,2]
[404105733,1769854232318,-7996.5,0.00014683,2]
[404105735,1769854232327,-3767.98,0.0001469,2]
[404105737,1769854232337,-166.66,0.00014814,2]
[404105738,1769854232353,-150.0,0.00014827,2]
[404105739,1769854232363,-361.57,0.00014945,2]
[404105740,1769854232372,-1126.52,0.00014976,2]
[404105741,1769854232381,-327.23,0.00014994,2]
[404105742,1769854232390,-322.02,0.00015078,2]
[404105743,1769854232399,-469.2,0.00015078,2]
[404105744,1769854232408,-166.66,0.00015108,2]
[404105745,1769854232417,-250.0,0.00015173,2]
[404105746,1769854232426,-300.0,0.00015173,2]
[404105747,1769854232436,-190.0,0.0001519,2]
[404105748,1769854232445,-195.0,0.00015213,2]
[404105749,1769854232454,-250.0,0.00015213,2]
[404105750,1769854232463,-200.0,0.00015222,2]
[404105751,1769854232471,-1675.88,0.00015231,2]
[404105752,1769854232480,-195.0,0.00015249,2]
[404105753,1769854232489,-600.0,0.00015249,2]
[404105754,1769854232498,-600.0,0.00015251,2]
[404105755,1769854232507,-150.92,0.00015278,2]
[404105756,1769854232516,-500.0,0.00015328,2]
[404105757,1769854232525,-195.0,0.00015328,2]
[404105758,1769854232535,-600.0,0.00015328,2]
[404105759,1769854232544,-247.0,0.00015374,2]
[404105760,1769854232553,-166.66,0.00015401,2]
[404105761,1769854232562,-9063.62545187,0.00015468,2]
[404105763,1769854232571,-247.0,0.00015474,2]
[404105765,1769854232580,-247.0,0.00015485,2]
[404105767,1769854232590,-151.0,0.000155,2]
[404105768,1769854232599,-151.0,0.000155,2]
[404105770,1769854232607,-151.0,0.00015501,2]
[404105773,1769854232627,-247.0,0.00015501,2]
[404105774,1769854232636,-151.0,0.00015511,2]
[404105776,1769854232645,-255.0,0.00015514,2]
[404105778,1769854232654,-250.0,0.00015515,2]
[404105780,1769854232664,-150.0,0.00015515,2]
[404105782,1769854232674,-150.0,0.00015515,2]
[404105784,1769854232683,-156.00668155,0.00015515,2]
[404105786,1769854232692,-150.0,0.00015515,2]
[404105787,1769854232702,-500.0,0.00015515,2]
[404105788,1769854232711,-151.0,0.00015515,2]
[404105789,1769854232720,-150.0,0.00015525,2]
[404105790,1769854232730,-479.5,0.00015534,2]
[404105791,1769854232739,-1000.0,0.00015566,2]
[404105792,1769854232748,-150.0,0.0001557,2]
[404105793,1769854232757,-150.0,0.0001557,2]
[404105794,1769854232766,-202.27114537,0.0001557,2]
[404105795,1769854232776,-500.0,0.0001557,2]
[404105796,1769854232785,-200.0,0.0001558,2]
[404105797,1769854232794,-207.54030859,0.00015625,2]
[404105798,1769854232803,-150.0,0.00015625,2]
[404105799,1769854232812,-500.0,0.00015625,2]
[404105800,1769854232822,-1221.01,0.00015667,2]
[404105801,1769854232831,-200.0,0.00015679,2]
[404105802,1769854232840,-500.0,0.00015679,2]
[404105803,1769854232850,-1202.3266,0.00015699,2]
[404105804,1769854232859,-614.12720055,0.00015699,2]
[404105805,1769854232868,-500.0,0.00015734,2]
[404105806,1769854232878,-9063.62545183,0.00015738,2]
[404105807,1769854232892,-247.0,0.00015741,2]
[404105808,1769854232901,-1000.0,0.00015751,2]
[404105809,1769854232911,-420.0,0.0001576,2]
[404105810,1769854232922,-219.7131896,0.0001577,2]
[404105811,1769854232936,-500.0,0.00015783,2]
[404105812,1769854232947,-500.0,0.00015788,2]
[404105813,1769854232957,-500.0,0.00015788,2]
[404105814,1769854232967,-500.0,0.00015788,2]
[404105815,1769854232976,-500.0,0.00015788,2]
[404105816,1769854232985,-500.0,0.00015788,2]
[404105817,1769854232994,-500.0,0.00015788,2]
[404105818,1769854233003,-500.0,0.00015788,2]
[404105819,1769854233012,-500.0,0.00015788,2]
[404105820,1769854233022,-500.0,0.00015788,2]
[404105821,1769854233031,-500.0,0.00015788,2]
[404105822,1769854233040,-500.0,0.00015788,2]
[404105823,1769854233049,-500.0,0.00015788,2]
[404105824,1769854233059,-500.0,0.00015788,2]
[404105825,1769854233068,-500.0,0.00015788,2]
[404105826,1769854233077,-500.0,0.00015788,2]
[404105827,1769854233086,-500.0,0.00015788,2]
[404105828,1769854233096,-500.0,0.00015788,2]
[404105829,1769854233105,-500.0,0.00015788,2]
[404105830,1769854233114,-500.0,0.00015788,2]
[404105831,1769854233123,-573.03408445,0.00015788,2]
[404105832,1769854233132,-500.0,0.00015788,2]
[404105833,1769854233141,-500.0,0.00015788,2]
[404105834,1769854233150,-500.0,0.00015788,2]
[404105835,1769854233159,-500.0,0.00015788,2]
[404105836,1769854233168,-500.0,0.00015788,2]
[404105837,1769854233177,-500.0,0.00015788,2]
[404105838,1769854233187,-500.0,0.00015788,2]
[404105839,1769854233196,-500.0,0.00015788,2]
[404105840,1769854233205,-500.0,0.00015788,2]
[404105841,1769854233215,-500.0,0.00015788,2]
[404105842,1769854233225,-500.0,0.00015788,2]
[404105843,1769854233234,-500.0,0.00015788,2]
[404105844,1769854233244,-500.0,0.00015788,2]
[404105845,1769854233253,-500.0,0.00015788,2]
[404105846,1769854233262,-500.0,0.00015788,2]
[404105847,1769854233272,-500.0,0.00015788,2]
[404105848,1769854233281,-500.0,0.00015788,2]
[404105849,1769854233290,-500.0,0.00015788,2]
[404105850,1769854233299,-500.0,0.00015788,2]
[404105851,1769854233308,-500.0,0.00015788,2]
[404105852,1769854233318,-650.0,0.00015788,2]
[404105853,1769854233327,-500.0,0.00015788,2]
[404105854,1769854233336,-500.0,0.00015788,2]
[404105855,1769854233346,-500.0,0.00015788,2]
[404105856,1769854233357,-500.0,0.00015788,2]
[404105857,1769854233367,-500.0,0.00015788,2]
[404105858,1769854233375,-500.0,0.00015788,2]
[404105859,1769854233384,-500.0,0.00015788,2]
[404105860,1769854233393,-500.0,0.00015788,2]
[404105861,1769854233403,-227.0727926,0.00015788,2]
[404105862,1769854233412,-1394.3,0.00015789,2]
[404105863,1769854233421,-312.8255941,0.00015789,2]
[404105864,1769854233431,-12975.4035981,0.00015789,2]
[404105865,1769854233440,-15528.4187613,0.00015789,2]
[404105866,1769854233449,-247.0,0.00015791,2]
[404105867,1769854233458,-675.99939671,0.00015798,2]
[404105868,1769854233467,-155.268,0.00015798,2]
[404105869,1769854233476,-500.0,0.00015798,2]
[404105870,1769854233485,-500.0,0.00015798,2]
[404105871,1769854233494,-500.0,0.00015798,2]
[404105872,1769854233503,-500.0,0.00015798,2]
[404105873,1769854233513,-500.0,0.00015798,2]
[404105874,1769854233522,-368.44774682,0.00015798,2]
[404105875,1769854233531,-500.0,0.00015798,2]
[404105876,1769854233540,-500.0,0.00015798,2]
[404105877,1769854233549,-500.0,0.00015798,2]
[404105878,1769854233559,-500.0,0.00015798,2]
[404105879,1769854233568,-500.0,0.00015798,2]
[404105880,1769854233577,-240.08350931,0.00015798,2]
[404105881,1769854233586,-500.0,0.00015798,2]
[404105882,1769854233594,-500.0,0.00015798,2]
[404105883,1769854233604,-500.0,0.00015798,2]
[404105884,1769854233615,-500.0,0.00015798,2]
[404105885,1769854233624,-500.0,0.00015798,2]
[404105886,1769854233633,-500.0,0.00015798,2]
[404105887,1769854233643,-520.64898802,0.00015798,2]
[404105888,1769854233652,-591.81,0.00015798,2]
[404105889,1769854233661,-591.81,0.00015798,2]
[404105890,1769854233671,-591.81,0.00015798,2]
[404105891,1769854233680,-591.81,0.00015798,2]
[404105892,1769854233690,-591.81,0.00015798,2]
[404105893,1769854233699,-216.88745347,0.00015798,2]
[404105894,1769854233708,-500.0,0.00015798,2]
[404105895,1769854233718,-500.0,0.00015798,2]
[404105896,1769854233727,-500.0,0.00015798,2]
[404105897,1769854233736,-500.93220397,0.00015798,2]
[404105898,1769854233745,-4862.0,0.00015799,2]
[404105899,1769854233756,-200.0,0.00015799,2]
[404105900,1769854233765,-200.0,0.00015799,2]
[404105901,1769854233774,-166.63389497,0.00015799,2]
[404105902,1769854233783,-151.0,0.00015799,2]
[404105903,1769854233793,-151.0,0.00015799,2]
[404105904,1769854233802,-151.0,0.00015799,2]
[404105905,1769854233811,-151.0,0.00015799,2]
[404105906,1769854233820,-159.0,0.00015799,2]
[404105907,1769854233829,-151.0,0.00015799,2]
[404105908,1769854233838,-159.0,0.00015799,2]
[404105909,1769854233848,-151.0,0.00015799,2]
[404105910,1769854233857,-151.0,0.00015799,2]
[404105911,1769854233867,-151.0,0.00015799,2]
[404105912,1769854233877,-151.0,0.00015799,2]
[404105913,1769854233892,-151.0,0.00015799,2]
[404105914,1769854233901,-151.0,0.00015799,2]
[404105915,1769854233910,-151.0,0.00015799,2]
[404105916,1769854233920,-151.0,0.00015799,2]
[404105917,1769854233931,-208.48841779,0.00015799,2]
[404105918,1769854233941,-151.0,0.00015799,2]
[404105919,1769854233951,-151.0,0.00015799,2]
[404105920,1769854233962,-151.0,0.00015799,2]
[404105921,1769854233972,-151.0,0.00015799,2]
[404105922,1769854233981,-151.0,0.00015799,2]
[404105923,1769854233991,-151.0,0.00015799,2]
[404105924,1769854234000,-151.0,0.00015799,2]
[404105925,1769854234009,-151.0,0.00015799,2]
[404105926,1769854234018,-151.0,0.00015799,2]
[404105927,1769854234027,-151.0,0.00015799,2]
[404105928,1769854234036,-151.0,0.00015799,2]
[404105929,1769854234045,-151.0,0.00015799,2]
[404105930,1769854234055,-151.0,0.00015799,2]
[404105931,1769854234064,-151.0,0.00015799,2]
[404105932,1769854234073,-151.0,0.00015799,2]
[404105933,1769854234082,-151.0,0.00015799,2]
[404105934,1769854234091,-213.9529631,0.00015799,2]
[404105935,1769854234101,-200.0,0.00015799,2]
[404105936,1769854234110,-151.0,0.00015799,2]
[404105937,1769854234119,-151.0,0.00015799,2]
[404105938,1769854234129,-1680.0,0.00015804,2]
[404105939,1769854234138,-411.0,0.00015834,2]
[404105940,1769854234147,-411.0,0.0001584,2]
[404105941,1769854234156,-3322.0,0.00015841,2]
[404105942,1769854234166,-502.85646942,0.00015843,2]
[404105943,1769854234175,-500.0,0.00015843,2]
[404105944,1769854234184,-500.0,0.00015843,2]
[404105945,1769854234194,-663.8602548,0.00015843,2]
[404105946,1769854234203,-247.0,0.00015855,2]
[404105947,1769854234212,-411.0,0.00015893,2]
[404105948,1769854234221,-500.0,0.00015898,2]
[404105949,1769854234230,-500.0,0.00015898,2]
[404105950,1769854234240,-372.62827585,0.00015898,2]
[404105951,1769854234250,-500.0,0.00015898,2]
[404105952,1769854234259,-500.0,0.00015898,2]
[404105953,1769854234530,-500.0,0.00015898,2]
[404105954,1769854234540,-500.0,0.00015898,2]
[404105955,1769854234550,-500.0,0.00015898,2]
[404105956,1769854234559,-500.0,0.00015898,2]
[404105957,1769854234569,-500.0,0.00015898,2]
[404105958,1769854234579,-500.0,0.00015898,2]
[404105959,1769854234589,-500.0,0.00015898,2]
[404105960,1769854234599,-500.0,0.00015898,2]
[404105961,1769854234609,-500.0,0.00015898,2]
[404105962,1769854234619,-500.0,0.00015898,2]
[404105963,1769854234628,-591.81,0.00015898,2]
[404105964,1769854234637,-591.81,0.00015898,2]
[404105965,1769854234648,-591.81,0.00015898,2]
[404105966,1769854234658,-591.81,0.00015898,2]
[404105967,1769854234667,-591.81,0.00015898,2]
[404105968,1769854234677,-591.81,0.00015898,2]
[404105969,1769854234686,-500.0,0.00015898,2]
[404105970,1769854234696,-500.0,0.00015898,2]
[404105971,1769854234705,-358.11979136,0.00015898,2]
[404105972,1769854234715,-500.0,0.00015899,2]
[404105973,1769854234725,-500.0,0.00015899,2]
[404105974,1769854234735,-591.81,0.00015899,2]
[404105975,1769854234745,-788.77155364,0.00015908,2]
[404105976,1769854234755,-247.0,0.00015912,2]
[404105977,1769854234765,-411.0,0.00015912,2]
[404105978,1769854234775,-1221.01,0.00015941,2]
[404105979,1769854234785,-151.0,0.00015954,2]
[404105980,1769854234795,-578.20924308,0.00015954,2]
[404105981,1769854234804,-500.0,0.00015954,2]
[404105982,1769854234814,-500.0,0.00015954,2]
[404105983,1769854234824,-3000.0,0.00015954,2]
[404105984,1769854234834,-500.0,0.00015954,2]
[404105985,1769854234844,-3000.0,0.00015954,2]
[404105986,1769854234855,-500.0,0.00015954,2]
[404105987,1769854234864,-510.73051823,0.00015954,2]
[404105988,1769854234874,-1000.0,0.00015954,2]
[404105989,1769854234885,-750.0,0.00015954,2]
[404105990,1769854234896,-721.12765535,0.00015954,2]
[404105991,1769854234905,-250.0,0.00015954,2]
[404105992,1769854234915,-174.61919141,0.00015954,2]
[404105993,1769854234927,-1000.0,0.00015954,2]
[404105994,1769854234936,-250.0,0.00015954,2]
[404105995,1769854234945,-1000.0,0.00015954,2]
[404105996,1769854234955,-1221.90167299,0.00015954,2]
[404105997,1769854234967,-502.85513123,0.00015954,2]
[404105998,1769854234976,-322.6107,0.00015954,2]
[404105999,1769854234986,-196.59607985,0.00015954,2]
[404106000,1769854234995,-209.40437684,0.00015954,2]
[404106001,1769854235005,-1000.0,0.00015954,2]
[404106002,1769854235015,-1675.88,0.00015957,2]
[404106003,1769854235025,-200.0,0.00015957,2]
[404106004,1769854235036,-37043.58255425,0.0001598,2]
[404106005,1769854235045,-168.35,0.00015996,2]
[404106006,1769854235055,-500.0,0.00015999,2]
[404106007,1769854235064,-331.32506818,0.00015999,2]
[404106008,1769854235073,-367.32510181,0.00015999,2]
[404106009,1769854235083,-500.0,0.00015999,2]
[404106010,1769854235092,-500.0,0.00015999,2]
[404106011,1769854235102,-441.87136355,0.00015999,2]
[404106012,1769854235111,-500.0,0.00015999,2]
[404106013,1769854235121,-137452.91617617,0.00016,4]
[404106014,1769854235130,-9063.62545183,0.00016008,2]
[404106015,1769854235141,-217.15233878,0.00016009,2]
[404106016,1769854235151,-411.0,0.00016041,2]
[404106017,1769854235163,-200.0,0.00016052,2]
[404106018,1769854235172,-500.0,0.00016053,2]
[404106019,1769854235182,-500.0,0.00016053,2]
[404106020,1769854235191,-591.81,0.00016053,2]
[404106021,1769854235200,-225.18697532,0.00016064,2]
[404106022,1769854235210,-500.0,0.00016065,2]
[404106023,1769854235220,-1050.05212881,0.00016067,2]
[404106024,1769854235231,-411.0,0.00016099,2]
[404106025,1769854235240,-150.97,0.000161,2]
[404106026,1769854235250,-168.0,0.00016106,2]
[404106027,1769854235259,-200.0,0.00016117,2]
[404106028,1769854235269,-233.51889341,0.00016119,2]
[404106029,1769854235278,-411.0,0.00016127,2]
[404106030,1769854235287,-1408.32232241,0.00016132,2]
[404106031,1769854235297,-242.15909246,0.00016174,2]
[404106032,1769854235306,-411.0,0.00016184,2]
[404106033,1769854235315,-788.77155359,0.00016193,2]
[404106034,1769854235325,-267.7,0.00016203,2]
[404106035,1769854235335,-1221.01,0.00016215,2]
[404106036,1769854235346,-411.0,0.00016228,2]
[404106037,1769854235356,-251.11897888,0.00016229,2]
[404106038,1769854235366,-614.12720051,0.00016249,2]
[404106039,1769854235375,-411.0,0.00016251,2]
[404106040,1769854235384,-172.26,0.00016251,2]
[404106041,1769854235393,-200.0,0.00016278,2]
[404106042,1769854235402,-9063.62545183,0.00016279,2]
[404106043,1769854235411,-260.4103811,0.00016284,2]
[404106044,1769854235420,-270.0455652,0.00016339,2]
[404106045,1769854235430,-170.3144995,0.00016373,2]
[404106046,1769854235439,-500.0,0.00016373,2]
[404106047,1769854235449,-173.6397228,0.00016373,2]
[404106048,1769854235458,-500.0,0.00016373,2]
[404106049,1769854235467,-177.67534449,0.00016373,2]
[404106050,1769854235477,-500.0,0.00016373,2]
[404106051,1769854235487,-500.0,0.00016373,2]
[404106052,1769854235497,-500.0,0.00016373,2]
[404106053,1769854235507,-500.0,0.00016373,2]
[404106054,1769854235517,-225.41853677,0.00016373,2]
[404106055,1769854235527,-500.0,0.00016373,2]
[404106056,1769854235536,-558.9380785,0.00016373,2]
[404106057,1769854235547,-164.65462111,0.00016373,2]
[404106058,1769854235559,-160.247327,0.00016373,2]
[404106059,1769854235568,-500.0,0.00016373,2]
[404106060,1769854235577,-501.52455394,0.00016373,2]
[404106061,1769854235587,-500.0,0.00016373,2]
[404106062,1769854235597,-160.24931959,0.00016373,2]
[404106063,1769854235607,-500.0,0.00016373,2]
[404106064,1769854235616,-217.61635308,0.00016373,2]
[404106065,1769854235627,-500.0,0.00016373,2]
[404106066,1769854235638,-500.0,0.00016373,2]
[404106067,1769854235649,-500.0,0.00016373,2]
[404106068,1769854235658,-500.0,0.00016373,2]
[404106069,1769854235668,-169.63527301,0.00016373,2]
[404106070,1769854235678,-500.0,0.00016373,2]
[404106071,1769854235687,-500.0,0.00016373,2]
[404106072,1769854235696,-500.0,0.00016373,2]
[404106073,1769854235706,-500.0,0.00016373,2]
[404106074,1769854235715,-569.0431535,0.00016373,2]
[404106075,1769854235724,-500.0,0.00016373,2]
[404106076,1769854235734,-239.65788203,0.00016373,2]
[404106077,1769854235744,-163.03635,0.00016373,2]
[404106078,1769854235753,-160.35515155,0.00016373,2]
[404106079,1769854235763,-500.0,0.00016373,2]
[404106080,1769854235772,-500.0,0.00016373,2]
[404106081,1769854235781,-500.0,0.00016373,2]
[404106082,1769854235791,-500.0,0.00016373,2]
[404106083,1769854235800,-500.0,0.00016373,2]
[404106084,1769854235810,-500.0,0.00016373,2]
[404106085,1769854235819,-500.0,0.00016373,2]
[404106086,1769854235829,-500.0,0.00016373,2]
[404106087,1769854235839,-500.0,0.00016373,2]
[404106088,1769854235848,-500.0,0.00016373,2]
[404106089,1769854235858,-500.0,0.00016373,2]
[404106090,1769854235867,-166.24594316,0.00016373,2]
[404106091,1769854235877,-500.0,0.00016373,2]
[404106092,1769854235888,-503.24885751,0.00016373,2]
[404106093,1769854235897,-500.0,0.00016373,2]
[404106094,1769854235907,-500.0,0.00016373,2]
[404106095,1769854235924,-280.03725112,0.00016394,2]
[404106096,1769854235937,-500.0,0.00016438,2]
[404106097,1769854235946,-500.0,0.00016438,2]
[404106098,1769854235956,-500.0,0.00016438,2]
[404106099,1769854235966,-500.0,0.00016438,2]
[404106100,1769854235975,-500.0,0.00016438,2]
[404106101,1769854235984,-500.0,0.00016438,2]
[404106102,1769854235994,-500.0,0.00016438,2]
[404106103,1769854236003,-500.0,0.00016438,2]
[404106104,1769854236013,-500.0,0.00016438,2]
[404106105,1769854236023,-500.0,0.00016438,2]
[404106106,1769854236032,-500.0,0.00016438,2]
[404106107,1769854236042,-500.0,0.00016438,2]
[404106108,1769854236052,-500.0,0.00016438,2]
[404106109,1769854236062,-500.0,0.00016438,2]
[404106110,1769854236072,-500.0,0.00016438,2]
[404106111,1769854236081,-500.0,0.00016438,2]
[404106112,1769854236091,-500.0,0.00016438,2]
[404106113,1769854236100,-500.0,0.00016438,2]
[404106114,1769854236110,-500.0,0.00016438,2]
[404106115,1769854236119,-500.0,0.00016438,2]
[404106116,1769854236129,-500.0,0.00016438,2]
[404106117,1769854236139,-500.0,0.00016438,2]
[404106118,1769854236148,-500.0,0.00016438,2]
[404106119,1769854236158,-500.0,0.00016438,2]
[404106120,1769854236167,-500.0,0.00016438,2]
[404106121,1769854236177,-506.24800655,0.00016438,2]
[404106122,1769854236187,-500.0,0.00016438,2]
[404106123,1769854236196,-500.0,0.00016438,2]
[404106124,1769854236206,-500.0,0.00016438,2]
[404106125,1769854236215,-500.0,0.00016438,2]
[404106126,1769854236224,-500.0,0.00016438,2]
[404106127,1769854236234,-500.0,0.00016438,2]
[404106128,1769854236243,-500.0,0.00016438,2]
[404106129,1769854236252,-500.0,0.00016438,2]
[404106130,1769854236263,-500.0,0.00016438,2]
[404106131,1769854236272,-500.0,0.00016438,2]
[404106132,1769854236281,-500.0,0.00016438,2]
[404106133,1769854236291,-500.0,0.00016438,2]
[404106134,1769854236301,-500.0,0.00016438,2]
[404106135,1769854236312,-500.0,0.00016438,2]
[404106136,1769854236323,-500.0,0.00016438,2]
[404106137,1769854236335,-500.0,0.00016438,2]
[404106138,1769854236345,-500.0,0.00016438,2]
[404106139,1769854236354,-500.0,0.00016438,2]
[404106140,1769854236363,-500.0,0.00016438,2]
[404106141,1769854236373,-500.0,0.00016438,2]
[404106142,1769854236382,-500.0,0.00016438,2]
[404106143,1769854236391,-500.0,0.00016438,2]
[404106144,1769854236400,-500.0,0.00016438,2]
[404106145,1769854236409,-500.0,0.00016438,2]
[404106146,1769854236419,-500.0,0.00016438,2]
[404106147,1769854236429,-500.0,0.00016438,2]
[404106148,1769854236438,-500.0,0.00016438,2]
[404106149,1769854236448,-200.0,0.00016438,2]
[404106150,1769854236457,-500.0,0.00016438,2]
[404106151,1769854236466,-500.0,0.00016438,2]
[404106152,1769854236475,-500.0,0.00016438,2]
[404106153,1769854236485,-500.0,0.00016438,2]
[404106154,1769854236494,-150.86,0.0001644,2]
[404106155,1769854236506,-290.39862941,0.00016449,2]
[404106156,1769854236515,-788.77155359,0.00016477,2]
[404106157,1769854236525,-168.0,0.00016485,2]
[404106158,1769854236534,-1221.01,0.00016489,2]
[404106159,1769854236543,-500.0,0.00016493,2]
[404106160,1769854236552,-200.0,0.00016501,2]
[404106161,1769854236562,-151.0,0.00016502,2]
[404106162,1769854236571,-181.08010149,0.00016502,2]
[404106163,1769854236580,-301.1433787,0.00016504,2]
[404106164,1769854236590,-471.15,0.00016515,2]
[404106165,1769854236599,-772.96,0.00016521,2]
[404106166,1769854236608,-500.0,0.00016548,2]
[404106167,1769854236618,-9063.62545183,0.00016549,2]
[404106168,1769854236627,-868.64,0.00016575,2]
[404106169,1769854236637,-500.0,0.00016602,2]
[404106170,1769854236646,-178.24,0.00016626,2]
[404106171,1769854236655,-168.35,0.0001663,2]
[404106172,1769854236665,-168.0,0.0001664,2]
[404106173,1769854236675,-327.23,0.00016657,2]
[404106174,1769854236684,-500.0,0.00016657,2]
[404106175,1769854236694,-1675.88,0.00016682,2]
[404106176,1769854236704,-1000.0,0.00016685,2]
[404106177,1769854236713,-361.57,0.00016695,2]
[404106178,1769854236723,-500.0,0.00016712,2]
[404106179,1769854236734,-7412.5504,0.00016712,2]
[404106180,1769854236743,-163.0,0.0001672,2]
[404106181,1769854236753,-163.0,0.0001672,2]
[404106182,1769854236764,-165.0,0.0001672,2]
[404106183,1769854236773,-238.0,0.00016723,2]
[404106184,1769854236783,-788.77155359,0.00016762,2]
[404106185,1769854236792,-1221.01,0.00016763,2]
[404106186,1769854236802,-1205.0,0.00016786,2]
[404106187,1769854236812,-917.0,0.00016786,2]
[404106188,1769854236822,-500.0,0.00016788,2]
[404106189,1769854236831,-772.96,0.00016795,2]
[404106190,1769854236841,-500.0,0.00016799,2]
[404106191,1769854236851,-614.12720051,0.000168,2]
[404106192,1769854236861,-500.0,0.000168,6]
[404106193,1769854236870,-9063.62545183,0.00016819,2]
[404106194,1769854236880,-868.64,0.00016849,2]
[404106195,1769854236892,-151.0,0.00016851,2]
[404106196,1769854237020,-692.5704,0.00016851,2]
[404106197,1769854237029,-692.57041,0.00016851,2]
[404106198,1769854237039,-692.5704,0.00016851,2]
[404106199,1769854237049,-692.5704,0.00016851,2]
[404106200,1769854237059,-692.5704,0.00016851,2]
[404106201,1769854237069,-692.5704,0.00016851,2]
[404106202,1769854237078,-1015.62811156,0.00016851,2]
[404106203,1769854237087,-1000.0,0.000169,6]
[404106204,1769854237096,-1169.40986292,0.000169,2]
[404106205,1769854237106,-500.0,0.0001692,2]
[404106206,1769854237115,-500.0,0.00016921,2]
[404106207,1769854237124,-770.71912409,0.00016921,2]
[404106208,1769854237133,-1000.0,0.00016921,2]
[404106209,1769854237142,-1000.0,0.00016921,2]
[404106210,1769854237152,-1000.0,0.00016921,2]
[404106211,1769854237161,-1000.0,0.00016921,2]
[404106212,1769854237170,-1000.0,0.00016921,2]
[404106213,1769854237180,-500.0,0.00016921,2]
[404106214,1769854237189,-1000.0,0.00016921,2]
[404106215,1769854237198,-500.0,0.00016921,2]
[404106216,1769854237207,-497.73333874,0.00016921,2]
[404106217,1769854237216,-507.05553112,0.00016921,2]
[404106218,1769854237225,-500.0,0.00016921,2]
[404106219,1769854237234,-1000.0,0.00016921,2]
[404106220,1769854237243,-1000.0,0.00016921,2]
[404106221,1769854237253,-1000.0,0.00016921,2]
[404106222,1769854237262,-488.67,0.00016923,2]
[404106223,1769854237271,-168.0,0.00016938,2]
[404106224,1769854237280,-300.0,0.00016999,2]
[404106225,1769854237289,-300.0,0.00016999,2]
[404106226,1769854237298,-563.52650006,0.00016999,2]
[404106227,1769854237307,-500.0,0.00016999,2]
[404106228,1769854237318,-500.0,0.00016999,2]
[404106229,1769854237329,-591.81,0.00016999,2]
[404106230,1769854237338,-591.81,0.00016999,2]
[404106231,1769854237347,-300.0,0.00016999,2]
[404106232,1769854237357,-586.76390218,0.00017,2]
[404106233,1769854237366,-323347.21468038,0.00017,2]
[404106236,1769854238119,-47580.1581747,0.00017,2]
[404106237,1769854238128,-2388.29998803,0.00017,2]
[404106238,1769854238138,-250.0,0.00017,2]
[404106239,1769854238147,-267.7,0.00017013,2]
[404106240,1769854238156,-5930.0,0.00017027,2]
[404106241,1769854238165,-2444.0,0.00017027,2]
[404106242,1769854238174,-200.0,0.00017032,2]